Cogmind - Beta 16.1 @@@ ROGUE MODE // 2026.02.16 @ 18:47:55 Player: DS-RVS Result: Destroyed by S-43 Plague with Heavy Machine Gun Performance ------------- Evolutions (7) 3500 Regions Visited (21) 4200 Robots Destroyed (153) 765 Value Destroyed (6433) 6433 Prototype IDs (11) 220 Alien Tech Used (0) 0 Bonus (5843) 5843 TOTAL SCORE: 20961 Bonus ------- High Alert Combat Kills 102 Follower Combat Kills 1246 Entered Garrisons 200 Used RIF Installer 500 Entered DSFs 500 Network Hubs Disabled 200 Built Enhanced Grunts 300 A7 Reached Mainframe 300 Met R17 at Cetus 500 Met R17 at Research 2000 Friendly Fire -5 Cogmind --------- Core Integrity 0/1300 Matter 213/300 Energy 100/100 System Corruption 41% Temperature Cool (0) Movement Core (50) Location -3/Armory Parts ------- > --- POWER (1) -------- (None) > --- PROPULSION (6) --- (None) > --- UTILITY (11) ----- (None) > --- WEAPON (3) ------- (None) > --- INVENTORY (5) ---- Quantum Reactor Enhanced Flexi-carbon Leg Enhanced Flexi-carbon Leg Advanced Force Field Peak State ------------ > --- POWER ------------ Quantum Reactor > --- PROPULSION ------- Flexi-carbon Leg Thunder Leg Enhanced Flexi-carbon Leg Enhanced Flexi-carbon Leg Myomer Leg Centrium Wheel > --- UTILITY ---------- Large Storage Unit Advanced Visual Processing Unit Advanced Sensor Array Advanced Signal Interpreter Long-range Terrain Scanner Advanced Targeting Computer Core Analyzer Layered Medium Armor Plating Centrium Medium Armor Plating Improved Force Field Relay Coupler [Sentry] > --- WEAPON ----------- Advanced Variable Charge Gun Neutron Cannon Advanced KE Penetrator > --- INVENTORY -------- Quantum Reactor Enhanced Flexi-carbon Leg Enhanced Flexi-carbon Leg Enhanced Flexi-carbon Leg Improved Coolant Injector Advanced Recoil Stabilizer Improved Hardlight Generator Improved Force Field Improved Arc Projector Advanced Variable Charge Gun EMDS Advanced KE Penetrator Advanced Datajack Powered Hammer [Rating: 134] Favorites ----------- Power Quantum Reactor Engine Light Ion Engine Power Core Light Nuclear Core Reactor Quantum Reactor Propulsion Carbon-fiber Leg Treads Improved Medium Treads Leg Carbon-fiber Leg Wheel Centrium Wheel Hover Unit Combat Airjet Utility Advanced Targeting Computer Device Advanced Heat Sink Storage Large Storage Unit Processor Advanced Targeting Computer Hackware Relay Coupler [Sentry] Protection Centrium Medium Armor Plating Weapon Light Assault Rifle Energy Gun Advanced Variable Charge Gun Energy Cannon Cooled Plasma Cannon Ballistic Gun Light Assault Rifle Launcher Missile Launcher Impact Weapon Powered Hammer Special Melee Weapon Advanced Datajack Build | -11 -10 -10 -9 -9 -8 -7 -7 -7 -7 -7 -6 -6 -6 -6 -6 -5 -5 -5 -4 -3 -3 ------- Run | Yrd Mat Min Mat Min Mat Fac Was Fac DSF Gar Fac Ext Cet Arc Hub Fac Upp Upp Fac Res Arm Slots Evolved 14 | . . . 2 . 2 2 . . . . 2 . . . . 2 . . 2 2 . Power . | . . . . . . . . . . . . . . . . . . . . . . Propulsion 4 | . . . 1 . . 1 . . . . . . . . . 1 . . . 1 . Utility 9 | . . . . . 2 1 . . . . 2 . . . . 1 . . 2 1 . Weapon 1 | . . . 1 . . . . . . . . . . . . . . . . . . Parts Attached 128 | 6 5 3 6 . 17 6 . 1 3 8 6 21 4 1 2 6 2 . 13 12 6 Power 14 | 1 1 . . . 3 . . . . 1 . 3 1 . . . . . . 1 3 Engine 2 | 1 . . . . 1 . . . . . . . . . . . . . . . . Core 6 | . 1 . . . 2 . . . . 1 . 2 . . . . . . . . . Reactor 6 | . . . . . . . . . . . . 1 1 . . . . . . 1 3 Propulsion 41 | 2 2 2 3 . 3 2 . . . 3 4 8 . . 1 2 1 . 1 6 1 Treads 1 | . . . . . . . . . . . . 1 . . . . . . . . . Leg 31 | 2 2 2 3 . 3 2 . . . 2 . 5 . . 1 2 1 . 1 5 . Wheel 3 | . . . . . . . . . . 1 . 1 . . . . . . . 1 . Hover 6 | . . . . . . . . . . . 4 1 . . . . . . . . 1 Flight . | . . . . . . . . . . . . . . . . . . . . . . Utility 38 | 1 1 1 1 . 5 3 . . 1 1 2 4 1 1 . 2 . . 12 1 1 Device 15 | . 1 . . . 3 . . . . . . 2 . 1 . . . . 6 1 1 Storage 4 | 1 . . 1 . . . . . . . . . . . . . . . 2 . . Processor 6 | . . . . . 1 2 . . . . . . . . . 1 . . 2 . . Hackware 3 | . . . . . . . . . . . 2 . . . . . . . 1 . . Protection 10 | . . 1 . . 1 1 . . 1 1 . 2 1 . . 1 . . 1 . . Artifact . | . . . . . . . . . . . . . . . . . . . . . . Weapon 35 | 2 1 . 2 . 6 1 . 1 2 3 . 6 2 . 1 2 1 . . 4 1 Energy Gun 9 | . . . 2 . . 1 . . . 1 . 1 1 . . 1 . . . 1 1 Energy Cannon 5 | . . . . . 1 . . . . . . 2 . . . 1 . . . 1 . Ballistic Gun 15 | 2 1 . . . 3 . . 1 2 1 . 2 1 . . . . . . 2 . Ballistic Cannon . | . . . . . . . . . . . . . . . . . . . . . . Launcher 3 | . . . . . 2 . . . . . . . . . . . 1 . . . . Special Weapon . | . . . . . . . . . . . . . . . . . . . . . . Impact Weapon 2 | . . . . . . . . . . 1 . 1 . . . . . . . . . Slashing Weapon . | . . . . . . . . . . . . . . . . . . . . . . Piercing Weapon . | . . . . . . . . . . . . . . . . . . . . . . Special Melee Weapon 1 | . . . . . . . . . . . . . . . 1 . . . . . . Unidentified Prototypes 9 | . . . 1 . . . . . . . . 1 3 . 1 1 . . 1 1 . Corrupted Parts 10 | . . . . . . . . . . . . . . . 1 3 . . . 5 1 System Corruption 63 | . . . . . . . . . . . . . . . 5 22 . . . 35 1 Parts Lost 40 | . 1 . . . 5 . 1 . . 5 . 5 . 1 1 . 1 . . 11 9 Power 4 | . . . . . 1 . . . . 1 . 2 . . . . . . . . . Propulsion 15 | . 1 . . . 1 . 1 . . 2 . 1 . . 1 . 1 . . 3 4 Utility 14 | . . . . . 2 . . . . 1 . 2 . 1 . . . . . 5 3 Weapon 7 | . . . . . 1 . . . . 1 . . . . . . . . . 3 2 Highest Loss Streak 9 | . 1 . . . 3 . 1 . . 5 . 3 . 1 1 . 1 . . 8 9 To Critical Strikes . | . . . . . . . . . . . . . . . . . . . . . . Average Backups 12 | 3 7 8 8 9 13 13 13 12 13 11 12 11 14 14 14 12 14 14 13 12 6 Power . | . 1 1 1 1 . 1 . . . . 1 . 1 1 1 1 1 1 1 1 2 Propulsion 2 | 2 5 5 4 4 4 3 3 3 2 . . . 3 3 2 1 3 3 3 2 2 Utility 3 | . . . . 1 1 2 2 1 2 3 4 4 4 4 4 3 4 4 4 3 1 Weapon 5 | . 1 2 2 3 6 7 8 8 8 7 7 5 6 6 6 6 5 5 4 4 . Tool/Special . | . . . . . . . . . . . . . . . . . . . . . . Unused Backups 27 | . 3 1 1 . 4 3 . . 1 . . 2 3 . 2 1 . . 1 . 5 Power 1 | . . . . . . . . . . . . . . . . . . . . . 1 Propulsion 11 | . 3 1 1 . 1 1 . . . . . . . . 1 1 . . . . 2 Utility 6 | . . . . . 1 . . . . . . 1 1 . 1 . . . 1 . 1 Weapon 8 | . . . . . 2 2 . . 1 . . 1 2 . . . . . . . . Tool/Special 1 | . . . . . . . . . . . . . . . . . . . . . 1 Average Slot Usage (%) 95 | . 90 100 99 100 95 99 90 84 89 97 96 97 100 100 100 99 99 100 99 88 25 Engine 1 | . 8 . . . 2 . 4 7 7 . . . . . . . . . . . . Core 3 | . 5 14 11 11 6 7 2 . . 5 6 5 . . . . . . . . . Reactor 2 | . . . . . . . . . . . . . 6 6 6 5 5 5 5 4 1 Leg 23 | . 27 28 33 33 26 30 25 23 24 26 5 6 26 26 26 28 28 29 26 20 5 Hover 2 | . . . . . . . . . . . 20 15 . . . . . . . . . Device 7 | . 5 1 . . 12 7 7 7 7 6 6 5 6 6 6 5 5 5 9 14 6 Storage 6 | . 14 14 11 11 9 7 7 7 7 7 6 6 6 6 6 5 5 5 5 4 1 Processor 11 | . . . . . 1 14 15 15 15 15 13 13 13 13 13 14 17 17 20 15 3 Hackware 5 | . . . . . . . . . . . 9 13 13 13 13 7 5 5 5 4 1 Protection 7 | . . 12 11 11 8 7 7 7 7 7 6 6 6 6 6 10 11 11 10 4 . Energy Gun 4 | . . . 10 11 5 5 2 . . 6 6 . 1 6 6 5 5 5 5 4 . Energy Cannon 4 | . . . . . 3 . . . . . . 11 11 6 6 5 5 5 5 2 . Ballistic Gun 9 | . 28 28 22 22 17 15 15 15 18 15 13 2 6 5 . 1 3 5 5 5 1 Peak Build Rating 134 | 6 9 11 23 23 33 39 39 31 42 45 60 66 81 82 85 108 108 106 121 134 112 Average Rating 65 | 4 7 10 21 23 27 37 32 29 34 42 55 60 73 81 80 104 106 106 116 118 31 On Entrance 54 | . 6 9 11 23 23 25 39 29 30 42 45 60 65 81 79 85 108 106 106 120 112 Avg Prop Armor Cover (%) 9 | . . . . . . . . . 4 12 . 12 . . . . . . . 5 18 Naked Turns 137 | . . . . . . . . . . . . . . . . . . . . . 137 Heaviest Build 90 | 12 13 20 39 39 50 39 37 33 42 46 46 59 69 68 64 75 75 75 88 90 63 Greatest Support 124 | 20 20 20 45 45 49 67 67 52 69 67 67 70 70 70 83 119 119 114 124 124 16 Greatest Overweight (x) 5 | 1 . . . . 1 . . . . 4 1 5 . . . . . . . 4 3 Average Overweight (x) . | . . . . . . . . . . 1 . 1 . . . . . . . . . Largest Inventory Capacity 15 | 8 8 8 15 15 15 15 15 15 15 15 15 15 15 15 15 15 15 15 15 15 15 Average Capacity 14 | 7 8 8 11 15 15 15 15 15 15 15 15 15 15 15 15 15 15 15 15 15 8 Most Carried 15 | 6 8 8 9 9 15 15 14 13 15 15 15 15 15 15 15 15 15 15 15 15 14 Average Carried 12 | 3 7 8 8 9 13 14 13 12 13 12 13 12 14 14 14 13 15 15 14 13 6 Final Capacity 15 | 8 8 8 15 15 15 15 15 15 15 15 15 15 15 15 15 15 15 15 15 15 5 Final Carried 15 | 6 8 8 9 9 15 14 13 13 15 14 15 15 15 15 15 15 15 15 15 14 4 Class Distribution -------------------- 22% | Scavenger-Gunner 17% | Mutant 14% | Gunner 13% | Scavenger-Mutant 10% | Scavenger-Skirmisher 10% | Tank 5% | Skirmisher 4% | Scavenger-Tank Dominant Class ---------------- Mutant | -10/Materials Mutant | -10/Mines Tank | -9/Materials Tank | -9/Mines Skirmisher | -8/Materials Gunner | -7/Factory Mutant | -7/Waste Mutant | -7/Factory Gunner | -7/DSF Gunner | -7/Garrison Gunner | -6/Factory Mutant | -6/Extension Scavenger-Gunner | -6/Cetus Scavenger-Gunner | -6/Archives Scavenger-Mutant | -6/Hub_04(d) Scavenger-Mutant | -5/Factory Scavenger-Gunner | -5/Upper Caves Scavenger-Gunner | -5/Upper Caves Scavenger-Skirmisher | -4/Factory Scavenger-Skirmisher | -3/Research Mutant | -3/Armory Resources | -11 -10 -10 -9 -9 -8 -7 -7 -7 -7 -7 -6 -6 -6 -6 -6 -5 -5 -5 -4 -3 -3 ----------- Run | Yrd Mat Min Mat Min Mat Fac Was Fac DSF Gar Fac Ext Cet Arc Hub Fac Upp Upp Fac Res Arm Matter Collected 2948 | 223 166 46 86 28 517 94 . . 1 409 112 334 50 44 40 148 119 13 220 298 . Remotely . | . . . . . . . . . . . . . . . . . . . . . . Salvage Created 6328 | . 368 39 113 308 1361 94 . . . 506 112 1348 255 196 179 391 297 . 351 392 18 Parts 293 | . 22 2 7 12 70 2 . . . 24 3 47 8 4 12 16 17 . 26 18 3 Haulers Intercepted 5 | . 1 . 1 . 1 . . . . . 1 . . . . . . . . 1 . Recyclers Shooed 3 | . . . . . . . . . . . 1 . . . . 2 . . . . . Parts Field Recycled . | . . . . . . . . . . . . . . . . . . . . . . Retrieved Matter . | . . . . . . . . . . . . . . . . . . . . . . Parts Self-Destructed 26 | . . . . . . . . . . . . . . . . . 21 5 . . . Prevented 1 | . . . . . . . . . . . . . . . . . . 1 . . . Parts Restored . | . . . . . . . . . . . . . . . . . . . . . . Kills | -11 -10 -10 -9 -9 -8 -7 -7 -7 -7 -7 -6 -6 -6 -6 -6 -5 -5 -5 -4 -3 -3 ------- Run | Yrd Mat Min Mat Min Mat Fac Was Fac DSF Gar Fac Ext Cet Arc Hub Fac Upp Upp Fac Res Arm Combat Hostiles Destroyed 116 | . 9 2 1 6 31 1 . . . 12 1 15 4 . 4 3 11 . 9 6 1 Melee 1 | . . . . . . . . . . . . . . . . . . . . . 1 Guns 58 | . 9 2 . 4 13 1 . . . 12 1 2 1 . 3 . 4 . 2 4 . Cannons 37 | . . . . . 8 . . . . . . 9 3 . 1 3 6 . 7 . . AOE 16 | . . . 1 2 10 . . . . . . . . . . . 1 . . 2 . Classes Destroyed 18 | . 3 . . . 8 . . . . 1 . 3 . . 1 . 1 . . . 1 Worker 4 | . . . . . 3 . . . . . . . . . . . . . . 1 . Builder 6 | . . . . . 1 . . . . . . 4 . . . . . . . 1 . Tunneler 1 | . . . . . 1 . . . . . . . . . . . . . . . . Hauler 5 | . 1 . 1 . 1 . . . . . 1 . . . . . . . . 1 . Recycler 4 | . . . . . . . . . . . . 3 . . . 1 . . . . . Operator 10 | . . . . . 2 . . . . . . 1 . 6 1 . . . . . . Watcher 7 | . . . . . 1 1 . . . . . 2 . . . 2 . . 1 . . Swarmer 35 | . 2 2 . . 7 . . . . 3 . 2 . . 2 . 8 . 5 4 . Saboteur 1 | . . . . . . . . . . . . . . . . . . . . . 1 Grunt 43 | . 7 . 1 6 16 . . . . 5 1 5 . . . . 1 . . 1 . Brawler 1 | . . . . . 1 . . . . . . . . . . . . . . . . Duelist 2 | . . . . . . . . . . 1 . . . . . . 1 . . . . Protector 1 | . . . . . . . . . . . . . . . 1 . . . . . . Sentry 17 | . . . . . 6 1 . . . 3 . 5 . . . 1 . . . 1 . Hunter 1 | . . . . . 1 . . . . . . . . . . . . . . . . Programmer 7 | . . . . . . . . . . . . 1 . . . 2 . . 4 . . Behemoth 2 | . . . . . . . . . . . . 2 . . . . . . . . . Cetus Guard 4 | . . . . . . . . . . . . . 4 . . . . . . . . Lightning 1 | . . . . . . . . . . . . . . . 1 . . . . . . Mutant 1 | . . . . . . . . . . . . . . . . . 1 . . . . Best Kill Streak 10 | . 2 2 1 2 10 1 . . . 4 2 6 2 3 2 2 5 . 5 5 1 Combat Bots Only 7 | . 2 2 1 2 7 1 . . . 4 1 3 2 . 2 2 5 . 5 4 1 Max Kills in Single Turn 5 | . 1 1 1 1 5 1 . . . 2 1 1 1 1 1 1 1 . 1 2 1 Gunslinging 1 | . . . . . 1 . . . . 1 . . . . . . . . . . . Exploded 4 | . . . 1 1 4 . . . . . . . . . . . 1 . . 2 . Melee 1 | . . . . . . . . . . . . . . . . . . . . . 1 Uniques/NPCs Destroyed . | . . . . . . . . . . . . . . . . . . . . . . Combat | -11 -10 -10 -9 -9 -8 -7 -7 -7 -7 -7 -6 -6 -6 -6 -6 -5 -5 -5 -4 -3 -3 -------- Run | Yrd Mat Min Mat Min Mat Fac Was Fac DSF Gar Fac Ext Cet Arc Hub Fac Upp Upp Fac Res Arm Hostile Shots Fired 1072 | . 60 6 . 25 94 24 1 . 12 193 2 200 17 9 8 14 73 10 69 128 127 Missed 380 | . 15 1 . 7 32 7 . . 5 48 1 95 5 2 1 7 26 7 32 43 46 Hits 692 | . 45 5 . 18 62 17 1 . 7 145 1 105 12 7 7 7 47 3 37 85 81 Melee 21 | . . . . . . . 1 . . 3 . . . . . . 2 . . 13 2 Projectile 671 | . 45 5 . 18 62 17 . . 7 142 1 105 12 7 7 7 45 3 37 72 79 AOE 8 | . . . . . . . . . . . . . . . . . . . . . 8 Critical Strikes 24 | . 1 . . 2 1 . 1 . 2 . . 1 6 1 . . . . 1 5 3 Part Disruptions 2 | . . . . . . . . . . . . . . . . . . . . 2 . Damage Taken 10943 | . 489 35 . 326 1064 129 54 . 230 1407 18 1245 215 171 278 258 840 61 513 1665 1945 Core 2252 | . 125 14 . 63 63 22 . . 17 251 . 161 15 . 33 . 130 20 19 290 1029 Absorbed by Shields 600 | . . . . . . . . . . . . 59 132 . . . . . 90 245 74 Regen/Repaired (Parts) 31 | . . . . . . . . 31 . . . . . . . . . . . . . Core Remaining (%) 79 | 100 . 44 . 84 88 . . . . 58 . . . . 75 . . 85 98 . . Volleys Fired 349 | . 46 4 8 14 59 4 . . . 21 4 50 12 1 15 11 21 1 27 33 18 Largest 3 | . 2 2 3 3 3 3 . . . 3 3 3 3 3 2 3 3 2 3 3 3 Hottest 330 | . 40 40 90 90 103 123 . . . 136 136 150 105 150 115 205 330 125 205 205 135 Shots Fired 806 | . 92 8 23 42 174 12 . . . 61 12 112 29 3 30 23 42 3 47 73 20 Gun 569 | . 92 8 23 42 138 12 . . . 61 12 27 6 2 15 12 22 2 21 55 19 Cannon 229 | . . . . . 30 . . . . . . 85 23 1 15 11 18 1 26 18 1 Launcher 8 | . . . . . 6 . . . . . . . . . . . 2 . . . . Special . | . . . . . . . . . . . . . . . . . . . . . . Kinetic 398 | . 92 8 16 28 112 8 . . . 46 8 17 6 1 . 4 4 2 10 29 7 Thermal 340 | . . . . . 30 4 . . . 15 4 95 23 2 30 19 36 1 37 34 10 Explosive 8 | . . . . . 6 . . . . . . . . . . . 2 . . . . Electromagnetic 60 | . . . 7 14 26 . . . . . . . . . . . . . . 10 3 Robot Hit Streak 25 | . 21 3 7 12 13 10 . . . 11 15 25 11 8 17 10 11 1 8 8 4 Robot Miss Streak 9 | . 3 4 3 1 6 1 . . . 9 1 3 2 . 2 1 1 1 2 4 4 Penetration Max 1 | . . . . . . . . . . . . . . . . . . . . 1 . Secondary Targets 9 | . . . . 1 3 . . . . 4 . . . . . . . . . 1 . Max Gunslinging Chain 2 | . . . . 1 2 . . . . 1 . . . . . . . . . 1 . Shots Hit Robots 559 | . 62 4 15 34 103 9 . . . 50 11 90 25 9 24 21 27 1 21 43 10 Core Hits 341 | . 23 3 6 15 69 6 . . . 69 14 43 18 2 11 9 18 . 13 21 1 Critical Kills 9 | . 1 . . . 1 . . . . . . 5 . 1 1 . . . . . . Critical Parts Destroyed 7 | . . . . . . . . . . . . 1 . 3 . . . . 1 2 . Critical Strikes 16 | . 1 . . . 1 . . . . . . 6 . 4 1 . . . 1 2 . Meltdown 4 | . . . . . . . . . . . . 4 . . . . . . . . . Destroy 6 | . 1 . . . 1 . . . . . . . . 1 . . . . 1 2 . Smash 6 | . . . . . . . . . . . . 2 . 3 1 . . . . . . Melee Attacks 27 | . . . . . . . . . . 1 . 9 . 6 5 3 3 . . . . Impact 20 | . . . . . . . . . . 1 . 9 . 6 4 . . . . . . Slashing . | . . . . . . . . . . . . . . . . . . . . . . Piercing . | . . . . . . . . . . . . . . . . . . . . . . Sneak Attacks 13 | . . . . . . . . . . . . 6 . 6 . . 1 . . . . Combat Hostiles . | . . . . . . . . . . . . . . . . . . . . . . Follow-up Attacks . | . . . . . . . . . . . . . . . . . . . . . . Damage Inflicted 15752 | . 500 38 306 584 2828 199 . . . 1082 290 3315 761 626 668 617 1071 31 864 1676 296 Guns 7104 | . 500 38 199 417 1019 199 . . . 1057 290 426 126 53 339 231 410 31 307 1169 293 Cannons 5407 | . . . . . 476 . . . . . . 2196 635 31 275 386 496 . 557 355 . Explosions 1918 | . . . 107 167 1333 . . . . . . . . . . . 165 . . 146 . Melee 1289 | . . . . . . . . . . . . 693 . 542 54 . . . . . . Ramming 34 | . . . . . . . . . . 25 . . . . . . . . . 6 3 Kinetic 3920 | . 500 38 81 151 665 62 . . . 821 158 197 126 24 . 30 54 31 113 762 107 Thermal 8450 | . . . 107 167 722 137 . . . 236 132 2425 635 60 614 587 852 . 751 839 186 Explosive 1252 | . . . . . 1087 . . . . . . . . . . . 165 . . . . Electromagnetic 807 | . . . 118 266 354 . . . . . . . . . . . . . . 69 . Impact 1289 | . . . . . . . . . . . . 693 . 542 54 . . . . . . Slashing . | . . . . . . . . . . . . . . . . . . . . . . Piercing . | . . . . . . . . . . . . . . . . . . . . . . Highest Corruption 41 | . . . . . . . 20 20 20 20 . . . . 5 22 22 22 2 39 41 Average Corruption 18 | . . . . . . . 12 20 20 20 . . . . 5 17 22 22 1 30 40 Corruption Purged . | . . . . . . . . . . . . . . . . . . . . . . Corruption Blocked . | . . . . . . . . . . . . . . . . . . . . . . Effects 148 | . . . . . . . 7 2 7 28 . . . . 1 21 34 7 4 21 16 Message Errors 36 | . . . . . . . . 1 3 4 . . . . 1 3 8 3 1 7 5 Matter Fused 25 | . . . . . . . 1 1 . 4 . . . . . 6 6 . 2 3 2 Heat Flow Errors 19 | . . . . . . . 2 . 1 7 . . . . . 1 3 . 1 3 1 Energy Discharges 12 | . . . . . . . . . . 2 . . . . . 4 4 . . 1 1 Parts Rejected 3 | . . . . . . . 1 . . . . . . . . . . . . 1 1 Parts Fused 1 | . . . . . . . . . . . . . . . . 1 . . . . . Data Loss (minor) 20 | . . . . . . . . . 2 4 . . . . . 3 6 2 . 2 1 Data Loss (major) 4 | . . . . . . . . . . 2 . . . . . . 1 . . . 1 Misfires 3 | . . . . . . . . . . 1 . . . . . . 1 1 . . . Alerts 6 | . . . . . . . 1 . . 1 . . . . . 2 1 1 . . . Misdirections 7 | . . . . . . . 2 . 1 . . . . . . 1 1 . . . 2 Weapon Failures 12 | . . . . . . . . . . 3 . . . . . . 3 . . 4 2 Overload Shots 9 | . . . . . . . . . . . . 6 1 . . . 2 . . . . Effects 1 | . . . . . . . . . . . . 1 . . . . . . . . . Energy Bleed 1 | . . . . . . . . . . . . 1 . . . . . . . . . Overflow Damage 849 | . . . . . 22 . . . . . . 386 . 333 . . 28 . 7 73 . Projectiles 114 | . . . . . . . . . . . . 63 . . . . 28 . 7 16 . Explosions 79 | . . . . . 22 . . . . . . . . . . . . . . 57 . Melee 656 | . . . . . . . . . . . . 323 . 333 . . . . . . . Knockbacks 9 | . . . . . . . . . . . . 4 . 5 . . . . . . . Impact 9 | . . . . . . . . . . . . 4 . 5 . . . . . . . Kinetic . | . . . . . . . . . . . . . . . . . . . . . . Secondary . | . . . . . . . . . . . . . . . . . . . . . . Self-Inflicted Damage 209 | . . . . 45 138 . . . . 25 . . . . . . . . . . 1 Shots 7 | . . . . 2 5 . . . . . . . . . . . . . . . . Rammed 1 | . . . . . . . . . . . . . . . . . . . . . 1 Targets Rammed 2 | . . . . . . . . . . . . . . . . . . . . 1 1 Kicked 1 | . . . . . . . . . . . . . . . . . . . . 1 . Crushed . | . . . . . . . . . . . . . . . . . . . . . . Highest Temperature 399 | . 36 30 200 343 218 48 189 . 236 235 4 12 . 18 . 102 399 . 352 234 203 Average Temperature 82 | . 13 15 73 141 62 18 88 . 126 101 4 6 . 12 . 53 102 . 111 80 34 Received Heat Transfer 2266 | . 255 . . 192 441 36 . . 18 480 9 259 . 27 . 9 108 9 . 173 250 Effects 1 | . . . . . . . . . . . . . . . . . 1 . . . . Shutdowns 1 | . . . . . . . . . . . . . . . . . 1 . . . . Siege Activations . | . . . . . . . . . . . . . . . . . . . . . . Martial Activations . | . . . . . . . . . . . . . . . . . . . . . . Shielding Activations . | . . . . . . . . . . . . . . . . . . . . . . Robots Disrupted . | . . . . . . . . . . . . . . . . . . . . . . Combat Hostiles . | . . . . . . . . . . . . . . . . . . . . . . Robots Corrupted 9 | . . . . . . . . . . . . 4 . 5 . . . . . . . Combat Hostiles . | . . . . . . . . . . . . . . . . . . . . . . Parts Fried 24 | . . . 1 2 . . . . . . . 12 . 9 . . . . . . . Impact Corruptions 22 | . . . . . . . . . . . . 10 . 12 . . . . . . . Robots Melted 4 | . . . . . . . . . . . . 4 . . . . . . . . . Combat Hostiles 4 | . . . . . . . . . . . . 4 . . . . . . . . . Parts Melted 21 | . . . . . 2 . . . . . . 11 . . 4 2 1 . 1 . . Heat Transferred 10182 | . . . 150 150 977 300 . . . 550 300 3830 1000 87 808 609 433 . 222 544 222 Parts Sabotaged 4 | . . . . . . . . . . . . . . . . . . . . . 4 Parts Stolen . | . . . . . . . . . . . . . . . . . . . . . . Parts Stripped . | . . . . . . . . . . . . . . . . . . . . . . Power Chain Reactions 5 | . . . 1 2 1 . . . . . . . . . . . . . . 1 . Alert | -11 -10 -10 -9 -9 -8 -7 -7 -7 -7 -7 -6 -6 -6 -6 -6 -5 -5 -5 -4 -3 -3 ------- Run | Yrd Mat Min Mat Min Mat Fac Was Fac DSF Gar Fac Ext Cet Arc Hub Fac Upp Upp Fac Res Arm Maximum Alert Level 3 | . . . . . 2 . . . . 1 . 1 1 1 3 2 . . . . . Low Security (%) 75 | 100 100 100 100 100 37 100 100 100 100 37 100 96 4 76 56 . . . 100 100 100 Level 1 20 | . . . . . 50 . . . . 62 . 3 95 23 . 73 . . . . . Level 2 3 | . . . . . 12 . . . . . . . . . . 26 . . . . . Level 3 1 | . . . . . . . . . . . . . . . 43 . . . . . . Level 4 . | . . . . . . . . . . . . . . . . . . . . . . Level 5 . | . . . . . . . . . . . . . . . . . . . . . . High Security . | . . . . . . . . . . . . . . . . . . . . . . Max Security . | . . . . . . . . . . . . . . . . . . . . . . Peak Influence 965 | . 90 74 50 87 447 188 40 4 30 307 161 341 380 289 965 457 . . 125 101 65 Initial 457 | . . 28 13 15 . 188 40 . . 22 161 57 188 132 4 457 . . 27 38 15 Average 120 | . 36 26 15 35 224 141 11 . 6 213 134 55 277 119 408 380 . . 38 14 11 Influence Increases 5422 | . 287 74 90 162 878 37 . 4 30 335 27 785 312 237 1122 120 235 32 305 223 127 Destroy 0b10 Robot/C 2760 | . 180 60 60 120 620 20 . . . 240 20 420 160 80 180 60 200 20 180 120 20 Destroy 0b10 Robot/NC 260 | . 5 . 5 . 45 5 . . . . 5 75 10 30 45 15 . . 5 15 . Destroy Leader 508 | . 52 10 22 30 144 12 . . . 10 2 64 . . 44 24 20 10 32 32 . Allied During Kill 568 | . . 4 3 . . . . . . . . 84 119 110 242 4 . 2 . . . Successful Hack 82 | . 5 . . . . . . 4 . . . 6 . . 7 . . . 36 24 . Disable Machine 585 | . . . . . 15 . . . . . . 90 15 15 390 15 . . 30 . 15 Anti-Garrison Action 50 | . . . . . . . . . . 50 . . . . . . . . . . . Destroy Structure 309 | . . . . 12 39 . . . . 5 . 16 8 2 169 2 . . 22 32 2 Lose Combat Pursuer 300 | . 45 . . . 15 . . . 30 30 . 30 . . 45 . 15 . . . 90 Influence Decreases 5367 | . 213 114 84 202 463 337 115 4 . 58 216 566 319 555 199 692 495 91 276 266 102 Entered New Map 1665 | . . 46 21 25 . 227 75 . . 8 146 61 149 198 8 478 135 21 17 35 15 Time Decay 3231 | . 203 68 63 177 413 110 30 4 . . 70 440 170 347 81 214 310 70 259 147 55 Lost Part 286 | . 10 . . . 50 . 10 . . 50 . 20 . 10 10 . 10 . . 84 32 Lost Ally 185 | . . . . . . . . . . . . 45 . . 100 . 40 . . . . Squads Dispatched 25 | . 3 1 . . 5 . . . 1 . 2 2 . . . 1 . . 4 5 1 Investigation 6 | . 2 1 . . 2 . . . . . . . . . . . . . . 1 . Extermination 3 | . . . . . . . . . . . . . . . . 1 . . 2 . . Reinforcement 15 | . 1 . . . 3 . . . 1 . 1 2 . . . . . . 2 4 1 Assault . | . . . . . . . . . . . . . . . . . . . . . . Garrison 1 | . . . . . . . . . . . 1 . . . . . . . . . . Intercept . | . . . . . . . . . . . . . . . . . . . . . . Searches Triggered . | . . . . . . . . . . . . . . . . . . . . . . Construction Impeded 2 | . . . . . . . . . . . . 1 . . . . . . . 1 . Haulers Reinforced 3 | . . . . . . . . . . . 1 . . . . . . . . 2 . Active Scanning Responses . | . . . . . . . . . . . . . . . . . . . . . . Cargo Convoy Interrupts . | . . . . . . . . . . . . . . . . . . . . . . Stealth | -11 -10 -10 -9 -9 -8 -7 -7 -7 -7 -7 -6 -6 -6 -6 -6 -5 -5 -5 -4 -3 -3 --------- Run | Yrd Mat Min Mat Min Mat Fac Was Fac DSF Gar Fac Ext Cet Arc Hub Fac Upp Upp Fac Res Arm Distress Signals 14 | . . . 1 . 4 . . . . . . 1 2 . 1 . . . 1 4 . Communications Jammed . | . . . . . . . . . . . . . . . . . . . . . . Distress Signals . | . . . . . . . . . . . . . . . . . . . . . . Times Spotted 238 | . 19 4 4 6 43 2 4 . 3 13 1 26 12 3 13 8 15 4 12 31 15 Peak Tracking Total 10 | . 3 3 4 2 7 1 4 . 2 5 1 3 5 2 5 2 5 3 5 10 9 Tactical Retreats 15 | . 2 . . . 1 . . . 2 1 . 2 . . 3 . 1 . . 1 2 Traps | -11 -10 -10 -9 -9 -8 -7 -7 -7 -7 -7 -6 -6 -6 -6 -6 -5 -5 -5 -4 -3 -3 ------- Run | Yrd Mat Min Mat Min Mat Fac Was Fac DSF Gar Fac Ext Cet Arc Hub Fac Upp Upp Fac Res Arm Traps Triggered 16 | . 2 . . . 4 1 . . . 6 . 3 . . . . . . . . . Indirectly . | . . . . . . . . . . . . . . . . . . . . . . Trap Hack Attempts 6 | . . . . . . . . . . . . . . . . 6 . . . . . Triggered . | . . . . . . . . . . . . . . . . . . . . . . Disarmed . | . . . . . . . . . . . . . . . . . . . . . . Reprogrammed 1 | . . . . . . . . . . . . . . . . 1 . . . . . Reused . | . . . . . . . . . . . . . . . . . . . . . . Traps Extracted . | . . . . . . . . . . . . . . . . . . . . . . Installed . | . . . . . . . . . . . . . . . . . . . . . . Triggered . | . . . . . . . . . . . . . . . . . . . . . . Machines | -11 -10 -10 -9 -9 -8 -7 -7 -7 -7 -7 -6 -6 -6 -6 -6 -5 -5 -5 -4 -3 -3 ---------- Run | Yrd Mat Min Mat Min Mat Fac Was Fac DSF Gar Fac Ext Cet Arc Hub Fac Upp Upp Fac Res Arm Machines Disabled 42 | . . . . . 1 . . . . 1 . 7 1 1 26 1 1 . 2 . 1 Max in Single Turn 1 | . . . . . 1 . . . . 1 . 1 1 . . 1 1 . 1 . 1 Garrison Relay 1 | . . . . . . . . . . 1 . . . . . . . . . . . Network Hub 1 | . . . . . . . . . . . . . . . 1 . . . . . . Machines Repaired . | . . . . . . . . . . . . . . . . . . . . . . Machines Dismantled . | . . . . . . . . . . . . . . . . . . . . . . Machines Sabotaged . | . . . . . . . . . . . . . . . . . . . . . . Overloaded Fab Kills . | . . . . . . . . . . . . . . . . . . . . . . Hacking | -11 -10 -10 -9 -9 -8 -7 -7 -7 -7 -7 -6 -6 -6 -6 -6 -5 -5 -5 -4 -3 -3 --------- Run | Yrd Mat Min Mat Min Mat Fac Was Fac DSF Gar Fac Ext Cet Arc Hub Fac Upp Upp Fac Res Arm Machines Accessed 38 | . 5 1 . . 6 . . 2 . 1 1 9 3 1 3 . . . 4 2 . Terminals 33 | . 5 . . . 6 . . 1 . 1 1 9 3 . 3 . . . 4 . . Fabricators . | . . . . . . . . . . . . . . . . . . . . . . Repair Stations 2 | . . . . . . . . 1 . . . . . . . . . . . 1 . Recycling Units 1 | . . . . . . . . . . . . . . . . . . . . 1 . Scanalyzers . | . . . . . . . . . . . . . . . . . . . . . . Garrison Access . | . . . . . . . . . . . . . . . . . . . . . . Total Hacks 103 | . 9 1 . . 18 . . 5 . 1 1 19 7 25 7 . . . 6 4 . Successful 52 | . 5 1 . . 7 . . 3 . . 1 3 2 25 2 . . . 2 1 . Failed 50 | . 4 . . . 10 . . 2 . 1 . 16 5 . 5 . . . 4 3 . Catastrophic 10 | . . . . . 2 . . . . . . 6 2 . . . . . . . . Database Lockouts 1 | . . . . . 1 . . . . . . . . . . . . . . . . Manual 39 | . 9 . . . 16 . . . . . . 5 1 . 4 . . . 4 . . Terminals 69 | . 9 . . . 18 . . 1 . 1 1 19 7 . 7 . . . 6 . . Fabricators . | . . . . . . . . . . . . . . . . . . . . . . Repair Stations 7 | . . . . . . . . 4 . . . . . . . . . . . 3 . Recycling Units 1 | . . . . . . . . . . . . . . . . . . . . 1 . Scanalyzers . | . . . . . . . . . . . . . . . . . . . . . . Garrison Access . | . . . . . . . . . . . . . . . . . . . . . . Terminal Hacks 36 | . . 1 . . 1 . . 1 . . 1 2 2 25 2 . . . 1 . . Record 29 | . . . . . . . . . . . . . 2 25 2 . . . . . . Prototype ID Bank 1 | . . . . . 1 . . . . . . . . . . . . . . . . Open Door 4 | . . 1 . . . . . . . . 1 2 . . . . . . . . . Open DSF 1 | . . . . . . . . 1 . . . . . . . . . . . . . Zone Layout 1 | . . . . . . . . . . . . . . . . . . . 1 . . Fabricator Hacks . | . . . . . . . . . . . . . . . . . . . . . . Repair Station Hacks 3 | . . . . . . . . 2 . . . . . . . . . . . 1 . Scan Component 2 | . . . . . . . . 1 . . . . . . . . . . . 1 . Repair 1 | . . . . . . . . 1 . . . . . . . . . . . . . Recycling Unit Hacks . | . . . . . . . . . . . . . . . . . . . . . . Scanalyzer . | . . . . . . . . . . . . . . . . . . . . . . Garrison Access Hacks . | . . . . . . . . . . . . . . . . . . . . . . Unauthorized Hacks 13 | . 5 . . . 6 . . . . . . 1 . . . . . . 1 . . Terminals 13 | . 5 . . . 6 . . . . . . 1 . . . . . . 1 . . Botnet 4 | . 1 . . . 1 . . . . . . 1 . . . . . . 1 . . Skim 9 | . 4 . . . 5 . . . . . . . . . . . . . . . . Fabricators . | . . . . . . . . . . . . . . . . . . . . . . Repair Stations . | . . . . . . . . . . . . . . . . . . . . . . Recycling Units . | . . . . . . . . . . . . . . . . . . . . . . Scanalyzers . | . . . . . . . . . . . . . . . . . . . . . . Garrison Access . | . . . . . . . . . . . . . . . . . . . . . . Data Cores Recovered 2 | . . . . . 1 . . . . . . . . . 1 . . . . . . Used . | . . . . . . . . . . . . . . . . . . . . . . Hacking Detections 30 | . 3 . . . 6 . . 1 . 1 . 8 3 . 3 . . . 3 2 . Full Trace Events . | . . . . . . . . . . . . . . . . . . . . . . Feedback Events . | . . . . . . . . . . . . . . . . . . . . . . Feedback Blocked . | . . . . . . . . . . . . . . . . . . . . . . Robot Schematics Acquired . | . . . . . . . . . . . . . . . . . . . . . . Robots Built . | . . . . . . . . . . . . . . . . . . . . . . Authchips . | . . . . . . . . . . . . . . . . . . . . . . Time . | . . . . . . . . . . . . . . . . . . . . . . Total Robot Build Rating . | . . . . . . . . . . . . . . . . . . . . . . Part Schematics Acquired . | . . . . . . . . . . . . . . . . . . . . . . Parts Built . | . . . . . . . . . . . . . . . . . . . . . . Authchips . | . . . . . . . . . . . . . . . . . . . . . . Time . | . . . . . . . . . . . . . . . . . . . . . . Total Part Build Rating . | . . . . . . . . . . . . . . . . . . . . . . Part Studies Acquired . | . . . . . . . . . . . . . . . . . . . . . . Parts Repaired 1 | . . . . . . . . 1 . . . . . . . . . . . . . Time 32 | . . . . . . . . 32 . . . . . . . . . . . . . Parts Recycled . | . . . . . . . . . . . . . . . . . . . . . . Recycled Matter . | . . . . . . . . . . . . . . . . . . . . . . Retrieved Matter . | . . . . . . . . . . . . . . . . . . . . . . Retrieved Components . | . . . . . . . . . . . . . . . . . . . . . . Parts Scanalyzed . | . . . . . . . . . . . . . . . . . . . . . . Part Schematics Acquired . | . . . . . . . . . . . . . . . . . . . . . . Parts Damaged . | . . . . . . . . . . . . . . . . . . . . . . Bothacking | -11 -10 -10 -9 -9 -8 -7 -7 -7 -7 -7 -6 -6 -6 -6 -6 -5 -5 -5 -4 -3 -3 ------------ Run | Yrd Mat Min Mat Min Mat Fac Was Fac DSF Gar Fac Ext Cet Arc Hub Fac Upp Upp Fac Res Arm Used RIF Installer 1 | . . . . . . . . . . 1 . . . . . . . . . . . Robots Hacked 4 | . . . . . . . . . . . . . . . . 2 2 . . . . Non-combat 1 | . . . . . . . . . . . . . . . . 1 . . . . . Combat 3 | . . . . . . . . . . . . . . . . 1 2 . . . . Robot Hacks Applied 4 | . . . . . . . . . . . . . . . . 2 2 . . . . parse_system 1 | . . . . . . . . . . . . . . . . 1 . . . . . formatsys_high 3 | . . . . . . . . . . . . . . . . 1 2 . . . . Relay Couplers Released 5 | . . . . . . . . . . 5 . . . . . . . . . . . Machine Destruction 5 | . . . . . . . . . . 5 . . . . . . . . . . . Attached 3 | . . . . . . . . . . . 2 . . . . . . . 1 . . Fabnet Peak Effective % . | . . . . . . . . . . . . . . . . . . . . . . Robots Rewired 3 | . . . . . . . . . . . . . . . . . 1 . . . 2 Allies Hacked . | . . . . . . . . . . . . . . . . . . . . . . Hacks Repelled . | . . . . . . . . . . . . . . . . . . . . . . Allies | -11 -10 -10 -9 -9 -8 -7 -7 -7 -7 -7 -6 -6 -6 -6 -6 -5 -5 -5 -4 -3 -3 -------- Run | Yrd Mat Min Mat Min Mat Fac Was Fac DSF Gar Fac Ext Cet Arc Hub Fac Upp Upp Fac Res Arm Total Allies 20 | . . 1 . . . . . . . . . 8 5 . . 1 3 . . . 2 Largest Group 9 | . . 1 1 . . . . . . . . 4 9 9 8 3 1 1 1 . 2 Highest-Rated Group 748 | . . 31 31 . . . . . . . . 268 748 748 589 234 29 29 29 . 104 Highest-Rated Ally 159 | . . 31 31 . . . . . . . . 159 159 159 96 96 29 29 29 . 56 Total Orders 4 | . . . . . . . . . . . . . 1 . . 3 . . . . . STAY 1 | . . . . . . . . . . . . . . . . 1 . . . . . FOLLOW 3 | . . . . . . . . . . . . . 1 . . 2 . . . . . Ally Attacks 178 | . . 3 4 . . . . . . . . 52 40 6 53 4 2 2 . . 12 Total Damage 6126 | . . 22 41 . . . . . . . . 1145 910 197 3106 178 40 48 . . 439 Kills 40 | . . 1 2 . . . . . . . . 11 6 4 14 1 . 1 . . . Allies Corrupted 7 | . . . . . . . . . . . . . . . 4 3 . . . . . Allies Melted 1 | . . . . . . . . . . . . . . . . . . . . . 1 Intel | -11 -10 -10 -9 -9 -8 -7 -7 -7 -7 -7 -6 -6 -6 -6 -6 -5 -5 -5 -4 -3 -3 ------- Run | Yrd Mat Min Mat Min Mat Fac Was Fac DSF Gar Fac Ext Cet Arc Hub Fac Upp Upp Fac Res Arm Active Infowar (turns) 3223 | . . . . . 914 214 144 66 104 . . . . . . . . . 1027 675 79 Optics 1781 | . . . . . . . . . . . . . . . . . . . 1027 675 79 Sensors 2655 | . . . . . 826 214 144 66 104 . . . . . . . . . 857 384 60 Terrain 1778 | . . . . . 621 . . . . . . . . . . . . . 431 675 51 Robot Analysis Total . | . . . . . . . . . . . . . . . . . . . . . . Derelict Logs Recovered 3 | . . 1 . 1 . . . . . . . . . . . . 1 . . . . Drone Launches . | . . . . . . . . . . . . . . . . . . . . . . Drone Recoveries . | . . . . . . . . . . . . . . . . . . . . . . Exploration | -11 -10 -10 -9 -9 -8 -7 -7 -7 -7 -7 -6 -6 -6 -6 -6 -5 -5 -5 -4 -3 -3 ------------- Run | Yrd Mat Min Mat Min Mat Fac Was Fac DSF Gar Fac Ext Cet Arc Hub Fac Upp Upp Fac Res Arm Turns Passed 9656 | 70 512 204 164 427 1225 230 144 66 106 510 152 1221 355 785 245 448 692 147 1058 675 220 Spaces Moved 5496 | 42 267 154 105 275 650 123 100 25 76 261 137 758 233 142 141 280 477 115 557 376 202 Core 197 | 1 . . . . . . . . . . . . . . . . . . . . 196 Treads 36 | . . . . . . . . . . . . 36 . . . . . . . . . Legs 4374 | 41 267 154 105 275 650 123 100 25 76 170 21 96 233 142 141 280 477 115 557 326 . Wheels 309 | . . . . . . . . . . 91 . 163 . . . . . . . 50 5 Hover 580 | . . . . . . . . . . . 116 463 . . . . . . . . 1 Flight . | . . . . . . . . . . . . . . . . . . . . . . Fastest Speed 50 | 50 120 120 120 120 120 125 125 126 126 125 71 71 120 120 120 120 120 120 120 120 50 Average Speed 117 | 131 120 120 120 120 124 125 125 126 126 130 80 114 120 120 120 120 120 120 120 129 52 Slowest Speed 240 | 190 120 120 120 120 200 125 126 126 130 140 195 240 120 120 120 120 120 120 120 190 150 Overloaded Moves . | . . . . . . . . . . . . . . . . . . . . . . Propulsion Burnouts . | . . . . . . . . . . . . . . . . . . . . . . Robots Hopped . | . . . . . . . . . . . . . . . . . . . . . . Potential Cave-ins . | . . . . . . . . . . . . . . . . . . . . . . Cave-ins Triggered . | . . . . . . . . . . . . . . . . . . . . . . Exploration Rate (%) 37 | 3 54 41 18 50 62 5 68 1 72 30 4 85 83 80 17 12 62 19 15 14 21 Regions Visited 21 Branch Regions 9 Pre-discovered Areas 3 | . . 1 . . 2 . . . . . . . . . . . . . . . . Known Exits Taken 3 | . . . . . 1 . . 1 . . . . . . . . . . 1 . . Unknown Exits Taken 14 | 1 1 1 1 1 . . . . . . 1 1 1 1 1 1 1 1 . 1 . Scrap Searched 4 | . . 1 . 1 . . . . . . . . . . . . 1 1 . . . Spaces Dug 12 | . . . . . . . . . . . . . . . 3 . . . 5 4 . Terrain Destroyed 147 | . . . . 13 42 . . . . . . 11 2 . 8 . 33 2 16 17 3 Melee 3 | . . . . . . . . . . . . . . . 3 . . . . . . Projectile 64 | . . . . . 1 . . . . . . 11 2 . 5 . 12 2 16 12 3 AOE 80 | . . . . 13 41 . . . . . . . . . . . 21 . . 5 . Terrain Rammed 1 | . . . . . . . . . . 1 . . . . . . . . . . . Walls Destroyed 1 | . . . . . . . . . . 1 . . . . . . . . . . . Machines Disabled . | . . . . . . . . . . . . . . . . . . . . . . Actions | -11 -10 -10 -9 -9 -8 -7 -7 -7 -7 -7 -6 -6 -6 -6 -6 -5 -5 -5 -4 -3 -3 --------- Run | Yrd Mat Min Mat Min Mat Fac Was Fac DSF Gar Fac Ext Cet Arc Hub Fac Upp Upp Fac Res Arm Total 7952 | 53 387 168 130 346 938 191 118 60 86 371 168 996 286 743 182 373 549 122 898 492 295 Wait 1656 | . 58 6 2 58 182 46 17 32 . 58 11 94 24 592 10 52 45 7 277 59 26 Move 5477 | 41 266 153 104 274 649 123 99 25 75 260 136 757 232 141 140 279 476 114 556 375 202 Hop . | . . . . . . . . . . . . . . . . . . . . . . Pick Up 92 | 6 6 . 4 . 13 3 . 1 4 5 5 10 7 1 4 6 . . 10 6 1 Fast Attach 33 | 6 1 . . . 6 1 1 . 1 2 2 2 . . . 1 1 . 2 5 2 Attach 46 | . 1 . 2 . 3 2 1 1 1 4 3 5 1 1 1 5 . . 1 8 6 Detach 8 | . . . . . . 1 . 1 . 1 . 1 . . . 1 . . . 1 2 Swap 92 | . 3 3 5 . 17 6 . . 2 3 3 18 3 1 3 3 3 . 16 3 . Drop 78 | . 6 2 5 . 9 5 . . 3 4 4 11 7 . 4 6 . . 9 1 2 Fire 349 | . 46 4 8 14 59 4 . . . 21 4 50 12 1 15 11 21 1 27 33 18 Melee 27 | . . . . . . . . . . 1 . 9 . 6 5 3 3 . . . . Ram 2 | . . . . . . . . . . 1 . . . . . . . . . . 1 Kick 1 | . . . . . . . . . . . . . . . . . . . . 1 . Crush . | . . . . . . . . . . . . . . . . . . . . . . Escape Stasis 50 | . . . . . . . . . . 11 . 39 . . . . . . . . . Rewire 35 | . . . . . . . . . . . . . . . . . . . . . 35 Trap 6 | . . . . . . . . . . . . . . . . 6 . . . . . Miscellaneous . | . . . . . . . . . . . . . . . . . . . . . . Route ------- -11/Scrapyard -10/Materials (discovered 4 exits: [*Mat x3] / *Min) -10/Mines (discovered 2 exits: [*Mat x2]) -9/Materials -9/Mines -8/Materials (discovered 3 exits: *Fac x3) -7/Factory -7/Waste -7/Factory -7/DSF -7/Garrison -6/Factory -6/Extension (discovered 3 exits: *Fac x2 / *Cet) -6/Cetus (discovered 2 exits: *Fac / *Arc) -6/Archives (discovered 2 exits: *Hub x2) -6/Hub_04(d) -5/Factory -5/Upper Caves -5/Upper Caves -4/Factory (discovered 2 exits: *Res / *Upp) -3/Research -3/Armory History --------- Turn | Location | Event 28 | -11/Scrapyard | Discovered new exit (range 16) 71 | -11/Scrapyard | Entered Materials 131 | -10/Materials | Discovered new exit (range 11) 240 | -10/Materials | Discovered new exit (range 13) 314 | -10/Materials | Build established: Mutant 484 | -10/Materials | Discovered new exit (range 4) 499 | -10/Materials | Discovered new exit (range 16) 583 | -10/Materials | Entered Mines 589 | -10/Mines | Met a Derelict shopkeep closing up shop 620 | -10/Mines | A weapon hastily lodged in a ceiling crevice suddenly fell to the ground 633 | -10/Mines | Discovered new exit (range 8) 656 | -10/Mines | Received a Mining Laser from a helpful Derelict 692 | -10/Mines | Learned location of Storage (-9) 706 | -10/Mines | Core integrity fell below 50% 769 | -10/Mines | Discovered new exit (range 15) 787 | -10/Mines | Entered Materials 787 | -9/Materials | Accompanied by 1 ally 787 | -9/Materials | Evolved 2 slots: Propulsion x1, Weapon x1 912 | -9/Materials | Discovered new exit (range 16) 951 | -9/Materials | Entered Mines 1080 | -9/Mines | Build established: Tank 1237 | -9/Mines | Learned Materials garrison access intel 1238 | -9/Mines | Assembled infested the area 1243 | -9/Mines | Assisted by a Guerilla fighting off Assembled 1364 | -9/Mines | Discovered new exit (range 5) 1378 | -9/Mines | Entered Materials 1378 | -8/Materials | Evolved 2 slots: Utility x2 1379 | -8/Materials | Loaded intel: 1 garrison access location 1849 | -8/Materials | Build established: Skirmisher 2035 | -8/Materials | Discovered new exit (range 13) 2128 | -8/Materials | Destroyed 7 combat bots 2199 | -8/Materials | Lost 3 parts (1p1n1u) 2311 | -8/Materials | Central database locked down 2352 | -8/Materials | Identified exit to Factory 2414 | -8/Materials | Learned location of 1 exit from Lower Caves 2417 | -8/Materials | Learned location of Zion (-6) 2419 | -8/Materials | Learned Storage security intel 2420 | -8/Materials | Learned Storage trap positions 2422 | -8/Materials | Learned 4 Recycling zone layouts 2436 | -8/Materials | Learned 2 Lower Caves zone layouts 2461 | -8/Materials | Learned Storage stockpile data 2603 | -8/Materials | Entered Factory 2603 | -7/Factory | Evolved 2 slots: Propulsion x1, Utility x1 2654 | -7/Factory | Build established: Gunner 2833 | -7/Factory | Sucked down chute 2833 | -7/Factory | Entered Waste 2847 | -7/Waste | Spotted C-40 Crusher 2848 | -7/Waste | EMP discharged 2848 | -7/Waste | System corruption reached 10% 2869 | -7/Waste | Spotted C-40 Crusher 2886 | -7/Waste | Crushed by Compactor (1 part destroyed, 2 dropped) 2887 | -7/Waste | Spotted C-40 Crusher 2915 | -7/Waste | Spotted C-40 Crusher 2929 | -7/Waste | Spotted C-40 Crusher 2933 | -7/Waste | Spotted C-40 Crusher 2948 | -7/Waste | EMP discharged 2965 | -7/Waste | Discovered new exit (range 10) 2977 | -7/Waste | Entered Factory 3022 | -7/Factory | Repaired Cooling System 3043 | -7/Factory | Identified exit to DSF 3043 | -7/Factory | Entered DSF 3082 | -7/DSF | Additional patrols routed to DSF 3133 | -7/DSF | Discovered new exit (range 13) 3149 | -7/DSF | Entered Garrison 3214 | -7/Garrison | Lost 5 parts (1p2n1u1w) 3364 | -7/Garrison | Garrison Relay disabled 3491 | -7/Garrison | Triggered checkpoint 3596 | -7/Garrison | Discovered new exit (range 13) 3639 | -7/Garrison | Installed Relay Interface Framework 3659 | -7/Garrison | Entered Factory 3659 | -6/Factory | Evolved 2 slots: Utility x2 3777 | -6/Factory | Garrison activated, responded to threat 3808 | -6/Factory | Discovered new exit (range 6) 3811 | -6/Factory | Entered Extension 3887 | -6/Extension | Rescued a captive Derelict 3889 | -6/Extension | Rescued a captive Derelict 4154 | -6/Extension | Rescued a captive Derelict 4160 | -6/Extension | Rescued a captive Derelict 4320 | -6/Extension | Spotted B-75 Beast 4341 | -6/Extension | Destroyed B-75 Beast 4353 | -6/Extension | Spotted B-75 Beast 4413 | -6/Extension | Lost 3 parts (2p1u) 4442 | -6/Extension | Destroyed B-75 Beast 4518 | -6/Extension | Discovered new exit (range 3) 4663 | -6/Extension | Rescued A7 4761 | -6/Extension | Rescued a captive Derelict 4782 | -6/Extension | Rescued a captive Derelict 4860 | -6/Extension | Build established: Scavenger-Mutant 4948 | -6/Extension | Rescued a captive Derelict 4988 | -6/Extension | Discovered new exit (range 10) 4989 | -6/Extension | Discovered new exit (range 6) 5002 | -6/Extension | Disrupted transfer network 5032 | -6/Extension | Entered Cetus 5032 | -6/Cetus | Accompanied by 4 allies (A7) 5037 | -6/Cetus | Acquired a Cetus Manufacturing Module code from A7 5047 | -6/Cetus | Spotted Cetus Guard 5047 | -6/Cetus | Spotted Cetus Guard 5049 | -6/Cetus | Allies destroyed Cetus Guard 5050 | -6/Cetus | Spotted Cetus Guard 5053 | -6/Cetus | Spotted Cetus Guard 5058 | -6/Cetus | Allies destroyed Cetus Guard 5061 | -6/Cetus | Destroyed Cetus Guard 5064 | -6/Cetus | Destroyed Cetus Guard 5165 | -6/Cetus | Started Cetus Manufacturing Module 5177 | -6/Cetus | Escorted A7 to Cetus Mainframe 5190 | -6/Cetus | Manufactured an Enhanced Grunt 5215 | -6/Cetus | Manufactured an Enhanced Grunt 5240 | -6/Cetus | Manufactured an Enhanced Grunt 5251 | -6/Cetus | Discovered new exit (range 15) 5265 | -6/Cetus | Manufactured an Enhanced Grunt 5271 | -6/Cetus | Spotted Cetus Guard 5271 | -6/Cetus | Spotted Cetus Guard 5276 | -6/Cetus | Spotted Cetus Guard 5276 | -6/Cetus | Spotted Cetus Guard 5280 | -6/Cetus | Allies destroyed Cetus Guard 5281 | -6/Cetus | Destroyed Cetus Guard 5287 | -6/Cetus | Destroyed Cetus Guard 5288 | -6/Cetus | Allies destroyed Cetus Guard 5290 | -6/Cetus | Manufactured an Enhanced Grunt 5295 | -6/Cetus | Build established: Scavenger-Gunner 5296 | -6/Cetus | Discovered new exit (range 16) 5304 | -6/Cetus | Met Revision 17 5387 | -6/Cetus | Entered Archives 5387 | -6/Archives | Accompanied by 9 allies (A7) 5392 | -6/Archives | Received a hacking code to weaken MAIN.C 5425 | -6/Archives | Unable to access archive contents 5437 | -6/Archives | Unable to access archive contents 5440 | -6/Archives | Discovered new exit (range 15) 5449 | -6/Archives | Unable to access archive contents 5452 | -6/Archives | Discovered new exit (range 16) 5461 | -6/Archives | Unable to access archive contents 6172 | -6/Archives | Entered Hub_04(d) 6172 | -6/Hub_04(d) | Accompanied by 8 allies 6189 | -6/Hub_04(d) | Discovered new exit (range 5) 6310 | -6/Hub_04(d) | Network Hub disabled 6321 | -6/Hub_04(d) | Spotted Lightning 6321 | -6/Hub_04(d) | Spotted Lightning 6352 | -6/Hub_04(d) | Build established: Scavenger-Mutant 6356 | -6/Hub_04(d) | Allies destroyed Lightning 6364 | -6/Hub_04(d) | Destroyed Lightning 6374 | -6/Hub_04(d) | Found Prototype Energy Cannon 6383 | -6/Hub_04(d) | Lost 6 allies 6417 | -6/Hub_04(d) | Entered Factory 6417 | -5/Factory | Accompanied by 2 allies 6417 | -5/Factory | Evolved 2 slots: Propulsion x1, Utility x1 6418 | -5/Factory | System corruption reached 10% 6692 | -5/Factory | Lost 3 allies 6840 | -5/Factory | Discovered new exit (range 8) 6865 | -5/Factory | Entered Upper Caves 6982 | -5/Upper Caves | Build established: Scavenger-Gunner 7011 | -5/Upper Caves | Learned Factory stockpile data 7082 | -5/Upper Caves | Attacked by a delusional Derelict stockpiling parts 7290 | -5/Upper Caves | Attracted the attention of an 0b10 outpost 7463 | -5/Upper Caves | Encountered a Warlord checkpoint 7549 | -5/Upper Caves | Discovered new exit (range 7) 7557 | -5/Upper Caves | Entered another Upper Caves area 7557 | -5/Upper Caves | Accompanied by 1 ally 7685 | -5/Upper Caves | Discovered new exit (range 15) 7704 | -5/Upper Caves | Entered Factory 7704 | -4/Factory | Accompanied by 1 ally 7704 | -4/Factory | Evolved 2 slots: Utility x2 8150 | -4/Factory | Build established: Scavenger-Skirmisher 8571 | -4/Factory | Discovered new exit (range 12) 8606 | -4/Factory | Discovered new exit (range 18) 8625 | -4/Factory | Identified exit to Upper Caves 8676 | -4/Factory | Build established: Scavenger-Tank 8761 | -4/Factory | Identified exit to Research 8762 | -4/Factory | Entered Research 8762 | -3/Research | Evolved 2 slots: Propulsion x1, Utility x1 8962 | -3/Research | Revision forces began assault on 0b10 9112 | -3/Research | Met up with Revision 17++ 9117 | -3/Research | Spotted B-86 Titan 9124 | -3/Research | Assembled infested ambush trap array 9139 | -3/Research | Identified EMDS 9145 | -3/Research | System corruption reached 10% 9174 | -3/Research | Lost 4 allies 9175 | -3/Research | Lost 8 parts (2n4u2w) 9246 | -3/Research | System corruption reached 30% 9276 | -3/Research | Lost 3 allies 9391 | -3/Research | Discovered new exit (range 9) 9437 | -3/Research | Entered Armory 9516 | -3/Armory | Released all parts (8) 9545 | -3/Armory | Lost 9 parts (4n3u2w) 9606 | -3/Armory | Core integrity fell below 50% 9640 | -3/Armory | Core integrity fell below 20% 9657 | -3/Armory | Destroyed by S-43 Plague with Heavy Machine Gun Last Messages --------------- 09552_ Attempting to rewire H-77 Assassin. 09555_ H-77 Assassin rewired. 09556_ System corrupted: Heat flow error (+249). 09557_ Attempting to rewire L-61 Swordsman. 09587_ L-61 Swordsman rewired. 09589_ KG8Z UB1KLESZ|XW&R:FJDP/:PIVUT9N&HQFQYQ